bitfinex-derivatives/quotes_BTCF0:USTF0_20241029
["timestamp","ask_amount","ask_price","bid_price","bid_amount"]
[1730234042201,0.1042267,72204.0,72203.0,0.11768]
[1730234042390,0.1042267,72204.0,72203.0,0.27197139]
[1730234043496,0.0349687,72204.0,72203.0,0.54138586]
[1730234043708,0.07750885,72214.0,72213.0,0.069249]
[1730234044000,0.07756223,72214.0,72213.0,0.22388942]
[1730234044186,0.14681123,72214.0,72213.0,0.15464042]
[1730234044391,0.14681123,72214.0,72202.0,0.12709227]
[1730234044392,0.069254,72209.0,72205.0,0.11768]
[1730234044594,0.03504721,72208.0,72207.0,0.069254]
[1730234044985,0.27990597,72208.0,72207.0,0.22389442]
[1730234045188,0.07756302,72208.0,72207.0,0.22389442]
[1730234045387,0.03504721,72208.0,72207.0,0.34153442]
[1730234045591,0.10430121,72208.0,72207.0,0.34153442]
[1730234046298,0.03504721,72208.0,72207.0,0.47462267]
[1730234046491,0.1042646,72208.0,72207.0,0.35698267]
[1730234046691,0.1042646,72208.0,72207.0,0.27228042]
[1730234046891,0.1042646,72208.0,72207.0,0.15464042]
[1730234047090,0.14677958,72208.0,72207.0,0.15464042]
[1730234047392,0.069262,72207.0,72205.0,0.14660696]
[1730234047600,0.07752558,72206.0,72205.0,0.14660696]
[1730234047901,0.14678858,72206.0,72204.0,0.186905]
[1730234048104,0.3608,72215.0,72214.0,0.069255]
[1730234048406,0.43829286,72215.0,72214.0,0.21929628]
[1730234049611,0.3608,72215.0,72214.0,0.21929628]
[1730234049903,0.13308825,72224.0,72217.0,0.069253]
[1730234049904,0.3608,72218.0,72217.0,0.069253]
[1730234050295,0.3608,72218.0,72217.0,0.22336384]
[1730234050491,0.3608,72218.0,72217.0,0.34088384]
[1730234052105,0.36270169,72218.0,72217.0,0.34088384]
[1730234053502,0.36270169,72218.0,72217.0,0.15411084]
[1730234053803,0.34270169,72218.0,72212.0,0.11752]
[1730234053995,0.34270169,72218.0,72214.0,0.069255]
[1730234054194,0.00190169,72216.0,72214.0,0.22284497]
[1730234054407,0.00190169,72216.0,72214.0,0.069255]
[1730234055104,0.3408,72218.0,72217.0,0.069253]
[1730234055513,0.3408,72218.0,72213.0,0.15258515]
[1730234055703,0.3408,72218.0,72212.0,0.11752]
[1730234055704,0.3408,72218.0,72215.0,0.069254]
[1730234056204,0.13308825,72216.0,72206.0,0.13308825]
[1730234056401,0.49388825,72211.0,72210.0,0.069259]
[1730234056601,0.57126289,72211.0,72210.0,0.069259]
[1730234056801,0.21046289,72211.0,72210.0,0.21863981]
[1730234056998,0.07737464,72211.0,72210.0,0.33615981]
[1730234057199,0.07737464,72211.0,72210.0,0.26690081]
[1730234058810,1.28660356,72211.0,72207.0,0.01311049]
[1730234059112,0.069266,72203.0,72202.0,0.00207723]
[1730234059300,0.23711335,72203.0,72202.0,0.00207723]
[1730234059501,0.65259335,72203.0,72202.0,0.01284172]
[1730234059702,0.069271,72198.0,72181.0,0.00011246]
[1730234060012,0.13308825,72187.0,72185.0,0.069283]
[1730234060197,0.20236925,72187.0,72186.0,0.15245303]
[1730234060401,0.069285,72183.0,72181.0,0.01282141]
[1730234060606,0.21145436,72182.0,72181.0,0.01282141]
[1730234060802,0.2382076,72182.0,72181.0,0.01282141]
[1730234061202,0.1689216,72182.0,72181.0,0.08210841]
[1730234062611,0.28074129,72182.0,72181.0,0.01282141]
[1730234062810,0.8294303,72182.0,72181.0,0.01282141]
[1730234063215,0.69634205,72182.0,72181.0,0.01282141]
[1730234063404,0.74604803,72182.0,72181.0,0.01282141]
[1730234063599,0.8294303,72182.0,72181.0,0.01270895]
[1730234063912,0.069288,72180.0,72173.0,0.069294]
[1730234064103,0.14575411,72180.0,72173.0,0.069294]
[1730234064708,0.07118969,72180.0,72173.0,0.069294]
[1730234065215,0.069307,72161.0,72147.0,0.04128352]
[1730234065405,1.34451819,72180.0,72145.0,0.069321]
[1730234065406,0.49388825,72155.0,72145.0,0.069321]
[1730234065610,0.49388825,72148.0,72140.0,0.069326]
[1730234065812,0.13308825,72141.0,72140.0,0.069327]
[1730234066004,0.13308825,72141.0,72140.0,0.22360653]
[1730234066217,0.13308825,72141.0,72140.0,0.069327]
[1730234066612,0.20241425,72141.0,72140.0,0.15213328]
[1730234066805,0.20431594,72141.0,72140.0,0.15213328]
[1730234067412,0.13498994,72141.0,72140.0,0.15213328]
[1730234067620,0.13498994,72141.0,72140.0,0.22146028]
[1730234067913,0.13498994,72141.0,72140.0,0.23430741]
[1730234068917,0.13651757,72141.0,72140.0,0.16498041]
[1730234069506,0.13651757,72141.0,72140.0,0.01284713]
[1730234069705,0.13651757,72141.0,72138.0,0.069328]
[1730234070220,0.00342932,72140.0,72138.0,0.069328]
[1730234070413,0.00342932,72140.0,72136.0,0.069323]
[1730234070614,0.00342932,72140.0,72132.0,0.11756]
[1730234070814,0.00342932,72140.0,72135.0,0.069324]
[1730234071119,0.00342932,72138.0,72135.0,0.069324]
[1730234071309,0.00342932,72138.0,72136.0,0.069323]
[1730234071617,0.00342932,72138.0,72133.0,0.16023745]
[1730234072012,0.00342932,72136.0,72132.0,0.186887]
[1730234072214,0.00342932,72136.0,72134.0,0.14575108]
[1730234072414,0.00342932,72136.0,72133.0,0.21507708]
[1730234072609,0.00342932,72136.0,72135.0,0.069324]
[1730234072820,0.3608,72148.0,72135.0,0.3608]
[1730234073120,0.3608,72148.0,72147.0,0.069313]
[1730234073511,0.3608,72156.0,72147.0,0.28168485]
[1730234073746,0.3608,72156.0,72148.0,0.3608]
[1730234073907,0.3608,72156.0,72152.0,0.13308825]
[1730234074222,0.3608,72156.0,72155.0,0.069305]
[1730234074409,0.36369358,72156.0,72155.0,0.069305]
[1730234074614,0.36369358,72156.0,72155.0,0.22564472]
[1730234074811,0.43300458,72156.0,72155.0,0.15633972]
[1730234075216,0.43300458,72156.0,72149.0,0.21880621]
[1730234075413,0.43300458,72156.0,72151.0,0.069315]
[1730234075617,0.00289358,72154.0,72153.0,0.069314]
[1730234075922,0.00289358,72154.0,72153.0,0.21880321]
[1730234076623,0.00289358,72154.0,72153.0,0.41858035]
[1730234077316,0.3608,72162.0,72153.0,0.41858035]
[1730234077823,0.3608,72162.0,72157.0,0.069309]
[1730234078116,0.19977714,72159.0,72158.0,0.15010184]
[1730234078320,0.26908514,72159.0,72158.0,0.15010184]
[1730234078517,0.069312,72156.0,72154.0,0.15010184]
[1730234078823,0.069312,72156.0,72148.0,0.48779594]
[1730234078824,0.069301,72167.0,72162.0,0.069305]
[1730234079009,0.069302,72166.0,72162.0,0.069305]
[1730234079214,0.069302,72166.0,72163.0,0.15469926]
[1730234079409,0.56181715,72171.0,72163.0,0.15469926]
[1730234079410,0.0693,72168.0,72163.0,0.15469926]
[1730234080222,0.3608,72171.0,72163.0,0.15469926]
[1730234080421,0.069301,72167.0,72163.0,0.15469926]
[1730234081015,0.069302,72166.0,72163.0,0.15469926]
[1730234081920,0.3608,72171.0,72169.0,0.069299]
[1730234082123,0.431412,72177.0,72169.0,0.186739]
[1730234082124,0.3608,72177.0,72169.0,0.186739]
[1730234082326,0.06928,72189.0,72176.0,0.26906914]
[1730234082520,0.430077,72192.0,72189.0,0.069279]
[1730234083024,0.3608,72192.0,72190.0,0.21457579]
[1730234083324,0.3608,72192.0,72190.0,0.069278]
[1730234083729,0.3608,72192.0,72184.0,0.19977714]
[1730234083730,0.430077,72192.0,72191.0,0.15630701]
[1730234084116,0.43198711,72192.0,72189.0,0.069279]
[1730234084524,0.43198711,72192.0,72190.0,0.34610053]
[1730234084525,0.00191011,72192.0,72190.0,0.34610053]
[1730234084723,0.00191011,72192.0,72191.0,0.430078]
[1730234085026,0.00207847,72194.0,72193.0,0.069276]
[1730234085418,0.00207847,72194.0,72193.0,0.21368138]
[1730234086326,0.430054,72216.0,72193.0,0.92076538]
[1730234086327,0.3608,72216.0,72193.0,0.92076538]
[1730234086625,0.3608,72216.0,72212.0,0.069257]
[1730234087016,0.430054,72216.0,72213.0,0.14999863]
[1730234087216,0.069255,72214.0,72213.0,0.14999863]
[1730234087423,0.069263,72206.0,72201.0,0.3608]
[1730234087621,0.069264,72205.0,72201.0,0.3608]
[1730234087812,0.19977714,72207.0,72202.0,0.16061535]
[1730234088020,0.069265,72204.0,72202.0,0.16061535]
[1730234088218,0.00122214,72203.0,72201.0,0.3608]
[1730234088526,0.19977714,72202.0,72201.0,0.3608]
[1730234088721,0.26904414,72202.0,72201.0,0.3608]
[1730234089121,0.26904414,72202.0,72199.0,0.11744]
[1730234089323,0.06927,72199.0,72198.0,0.00207744]
[1730234089626,0.06927,72199.0,72198.0,0.15744817]
[1730234090028,0.06927,72199.0,72198.0,0.17013637]
[1730234090419,0.07049214,72199.0,72198.0,0.17013637]
[1730234091626,0.77754214,72199.0,72189.0,0.069279]
[1730234091825,0.19977714,72196.0,72189.0,0.069279]
[1730234092017,0.069275,72194.0,72190.0,0.069278]
[1730234092217,0.069275,72194.0,72191.0,0.069277]
[1730234092417,0.07049814,72193.0,72188.0,0.37391067]
[1730234092930,0.07049814,72193.0,72188.0,0.44319067]
[1730234093131,0.069279,72189.0,72188.0,0.37391067]
[1730234093430,0.07050114,72189.0,72188.0,0.37391067]
[1730234093929,0.07289653,72189.0,72188.0,0.37391067]
[1730234094127,0.43369653,72189.0,72188.0,0.01311067]
[1730234094320,0.43369653,72189.0,72185.0,0.069283]
[1730234094321,0.07289653,72189.0,72185.0,0.069283]
[1730234094523,0.069282,72187.0,72185.0,0.069283]
[1730234094830,0.08008127,72186.0,72181.0,0.069286]
[1730234095032,0.08008127,72186.0,72173.0,0.3608]
[1730234095033,0.069291,72177.0,72173.0,0.3608]
[1730234095327,0.70633279,72177.0,72164.0,0.3608]
[1730234095529,0.19977714,72172.0,72164.0,0.3608]
[1730234095734,0.069301,72167.0,72166.0,0.15774331]
[1730234096032,0.069302,72166.0,72165.0,0.15774331]
[1730234096221,0.069302,72166.0,72164.0,0.01293292]
[1730234096222,0.069302,72165.0,72164.0,0.01293292]
[1730234096418,0.069305,72163.0,72159.0,0.069308]
[1730234096622,0.07647468,72162.0,72159.0,0.069308]
[1730234096823,0.07647468,72162.0,72160.0,0.15185998]
[1730234097021,0.00361753,72161.0,72160.0,0.22116698]
[1730234097233,0.03754965,72161.0,72160.0,0.069307]
[1730234097525,0.00361753,72161.0,72160.0,0.21715139]
[1730234097925,0.08009371,72161.0,72160.0,0.21715139]
[1730234098530,0.08009349,72161.0,72160.0,0.21715139]
[1730234100532,0.36200001,72171.0,72160.0,0.56356439]
[1730234100720,0.3608,72171.0,72170.0,0.26906557]
[1730234100921,0.3608,72171.0,72168.0,0.11744]
[1730234101233,0.0693,72168.0,72167.0,0.0693]
[1730234101833,0.069303,72164.0,72163.0,0.187464]
[1730234102135,0.3608,72171.0,72167.0,0.0693]
[1730234102136,0.0693,72168.0,72167.0,0.0693]
[1730234102630,0.069304,72163.0,72159.0,0.01315402]
[1730234102826,0.069304,72163.0,72158.0,0.11744]
[1730234103027,0.069304,72163.0,72160.0,0.15672383]
[1730234103222,0.069304,72163.0,72159.0,0.15001256]
[1730234103532,0.069301,72167.0,72166.0,0.069301]
[1730234105033,0.56176758,72171.0,72156.0,0.37382046]
[1730234105337,0.56176758,72171.0,72132.0,0.0208]
[1730234105338,0.3608,72158.0,72141.0,0.3608]
[1730234105531,0.069312,72155.0,72152.0,0.069314]
[1730234105735,0.43011,72158.0,72155.0,0.069312]
[1730234106330,0.069311,72157.0,72155.0,0.069312]
[1730234106530,0.069313,72154.0,72150.0,0.069317]
[1730234106930,0.069313,72154.0,72151.0,0.15364056]
[1730234107134,0.069313,72154.0,72151.0,0.22295656]
[1730234107346,0.56180758,72158.0,72153.0,0.069314]
[1730234107534,0.56056757,72158.0,72153.0,0.069314]
[1730234107735,0.069312,72155.0,72153.0,0.069314]
[1730234108044,0.56184757,72158.0,72150.0,0.0129818]
[1730234108335,0.56184757,72158.0,72151.0,0.22021379]
[1730234108336,0.069313,72154.0,72151.0,0.22021379]
[1730234108644,0.069313,72154.0,72151.0,0.069316]
[1730234109138,0.069313,72154.0,72152.0,0.15089779]
[1730234109928,0.069314,72153.0,72152.0,0.15089779]
[1730234110136,0.26908157,72153.0,72152.0,0.15089779]
[1730234110940,0.19976757,72153.0,72142.0,0.13038359]
[1730234111145,0.069316,72151.0,72147.0,0.069319]
[1730234111337,0.069316,72151.0,72148.0,0.069319]
[1730234111543,0.069316,72151.0,72148.0,0.22466136]
[1730234111745,0.069316,72151.0,72148.0,0.069319]
[1730234113141,0.069316,72151.0,72142.0,0.01294359]
[1730234113341,0.069316,72151.0,72147.0,0.069319]
[1730234113642,0.19976757,72148.0,72147.0,0.069319]
[1730234113840,0.069321,72146.0,72141.0,0.15961825]
[1730234114039,0.19976757,72142.0,72139.0,0.3608]
[1730234114241,0.069327,72140.0,72139.0,0.3608]
[1730234114648,0.069327,72140.0,72139.0,0.37385505]
[1730234115740,0.069327,72140.0,72139.0,0.01305505]
[1730234116052,0.069327,72140.0,72133.0,0.00207945]
[1730234116053,0.069332,72134.0,72133.0,0.00207945]
[1730234116257,0.069332,72134.0,72133.0,0.0152157]
[1730234116258,0.26909957,72134.0,72133.0,0.0152157]
[1730234116454,0.26909957,72134.0,72133.0,0.00207945]
[1730234117444,0.26909957,72134.0,72130.0,0.01285914]
[1730234117445,0.68497957,72134.0,72130.0,0.01285914]
[1730234117647,0.3608,72131.0,72115.0,0.19976757]
[1730234117959,0.069339,72127.0,72126.0,0.1563231]
[1730234118154,0.3608,72131.0,72124.0,0.069342]
[1730234118155,0.069341,72126.0,72124.0,0.069342]
[1730234118351,0.430141,72125.0,72124.0,0.069342]
[1730234118759,0.430141,72125.0,72124.0,0.22860224]
[1730234119259,0.430141,72125.0,72124.0,0.15926024]
[1730234119766,0.069342,72124.0,72122.0,0.15636648]
[1730234119964,0.3608,72125.0,72122.0,0.15636648]
[1730234119965,0.069343,72123.0,72122.0,0.15636648]
[1730234120164,0.069343,72123.0,72116.0,0.069349]
[1730234120460,0.13326435,72119.0,72118.0,0.069348]
[1730234121363,0.13326435,72124.0,72122.0,0.069344]
[1730234121964,0.20260635,72124.0,72112.0,0.12455587]
[1730234122461,0.20260635,72124.0,72113.0,0.14472739]
[1730234122666,0.20260635,72124.0,72120.0,0.069346]
[1730234122868,0.13326435,72124.0,72120.0,0.069346]
[1730234123057,0.069344,72122.0,72116.0,0.069349]
[1730234123257,0.069344,72122.0,72118.0,0.069347]
[1730234123660,0.3608,72119.0,72118.0,0.069347]
[1730234124250,0.49406435,72119.0,72118.0,0.069347]
[1730234127758,0.13326435,72119.0,72118.0,0.069347]
[1730234127956,0.06933,72136.0,72118.0,0.069347]
[1730234127957,0.3608,72142.0,72118.0,0.70025159]
[1730234128158,0.3608,72142.0,72139.0,0.069327]
[1730234128357,0.3608,72142.0,72139.0,0.20259135]
[1730234128662,0.3608,72142.0,72139.0,0.21478286]
[1730234129364,0.069323,72144.0,72139.0,0.21478286]
[1730234130275,0.069325,72142.0,72139.0,0.21478286]
[1730234132567,0.3608,72148.0,72139.0,0.21478286]
[1730234133367,0.13326435,72145.0,72139.0,0.21478286]
[1730234134368,0.13326435,72145.0,72144.0,0.069323]
[1730234134778,0.13326435,72145.0,72138.0,0.3608]
[1730234134966,0.069331,72135.0,72134.0,0.186652]
[1730234135371,0.069331,72135.0,72134.0,0.069332]
[1730234136374,0.13326435,72136.0,72135.0,0.069331]
[1730234136679,0.06933,72137.0,72135.0,0.069331]
[1730234136974,0.06933,72137.0,72130.0,0.11732]
[1730234136975,0.06933,72137.0,72136.0,0.06933]
[1730234137775,0.13326435,72145.0,72139.0,0.069327]
[1730234137978,0.13326435,72145.0,72136.0,0.15546802]
[1730234138188,0.069328,72139.0,72137.0,0.069329]
[1730234138680,0.069328,72139.0,72138.0,0.15328869]
[1730234139774,0.069328,72139.0,72138.0,0.22261669]
[1730234140378,0.13326435,72140.0,72138.0,0.15328869]
[1730234140567,0.13326435,72144.0,72141.0,0.069325]
[1730234140769,0.069327,72140.0,72138.0,0.15328869]
[1730234140968,0.069327,72140.0,72137.0,0.069329]
[1730234141477,0.069326,72141.0,72138.0,0.22318164]
[1730234141679,0.069326,72141.0,72140.0,0.069327]
[1730234143080,0.069328,72139.0,72136.0,0.06933]
[1730234143386,0.069328,72139.0,72137.0,0.15076751]
[1730234143584,0.3608,72142.0,72137.0,0.15076751]
[1730234143877,0.069326,72141.0,72140.0,0.069326]
[1730234144680,0.3608,72142.0,72139.0,0.069326]
[1730234144681,0.069327,72140.0,72139.0,0.069326]
[1730234145975,0.3608,72142.0,72134.0,0.00248062]
[1730234146179,0.3608,72142.0,72139.0,0.069327]
[1730234146180,0.430125,72142.0,72139.0,0.069327]
[1730234146379,0.069326,72141.0,72139.0,0.069327]
[1730234146686,0.069327,72140.0,72139.0,0.069327]
[1730234147079,0.10328088,72140.0,72139.0,0.069327]
[1730234147473,0.03395388,72140.0,72134.0,0.00248062]
[1730234147782,0.3608,72142.0,72134.0,0.00248062]
[1730234147783,0.56339535,72135.0,72134.0,0.00248062]
[1730234147977,0.069337,72129.0,72126.0,0.00214691]
[1730234148285,1.569337,72129.0,72126.0,0.00214691]
[1730234148478,1.64585323,72129.0,72126.0,0.00214691]
[1730234149483,1.64585323,72129.0,72127.0,0.01260458]
[1730234149783,0.50665323,72129.0,72127.0,0.01260458]
[1730234150375,0.41592,72128.0,72117.0,0.00235885]
[1730234150575,0.41592,72128.0,72111.0,0.00218473]
[1730234150576,0.49406435,72122.0,72111.0,0.00218473]
[1730234150776,0.069355,72110.0,72109.0,0.00213358]
[1730234150974,0.069355,72110.0,72105.0,0.00305715]
[1730234150975,0.069357,72108.0,72105.0,0.00305715]
[1730234151181,0.3358857,72108.0,72105.0,0.00305715]
[1730234151384,0.069359,72106.0,72105.0,0.00305715]
[1730234151589,0.069361,72104.0,72103.0,0.00190532]
[1730234151780,1.930161,72104.0,72103.0,0.00190532]
[1730234152092,0.069363,72102.0,72096.0,0.00333812]
[1730234152273,0.20262735,72102.0,72096.0,0.00333812]
[1730234152479,0.069366,72099.0,72096.0,0.00333812]
[1730234152674,0.14593291,72099.0,72096.0,0.00333812]
[1730234152873,0.56201291,72099.0,72096.0,0.00333812]
[1730234153278,0.14593291,72099.0,72096.0,0.00333812]
[1730234154187,0.069366,72099.0,72096.0,0.00333812]
[1730234154787,0.41612,72098.0,72086.0,0.00225344]
[1730234155013,0.069379,72085.0,72075.0,0.00161465]
[1730234155177,0.20264535,72083.0,72075.0,0.00161465]
[1730234155382,0.069383,72081.0,72075.0,0.00161465]
[1730234155590,0.430183,72081.0,72075.0,0.00161465]
[1730234155892,0.846383,72081.0,72075.0,0.00161465]
[1730234156084,0.069386,72078.0,72075.0,0.00161465]
[1730234156389,0.56345035,72078.0,72075.0,0.00161465]
[1730234156581,0.97965035,72078.0,72075.0,0.00161465]
[1730234157088,0.99271761,72078.0,72075.0,0.00161465]
[1730234158082,0.97965035,72078.0,72075.0,0.00161465]
[1730234158291,0.3608,72078.0,72077.0,0.07511444]
[1730234158489,0.3608,72078.0,72077.0,0.22012764]
[1730234160388,0.3608,72078.0,72077.0,0.15074064]
[1730234160595,0.3608,72078.0,72075.0,0.00161465]
[1730234160596,0.069388,72076.0,72075.0,0.00161465]
[1730234160888,0.20265235,72076.0,72075.0,0.00161465]
[1730234161281,0.069396,72068.0,72067.0,0.00202854]
[1730234161488,0.56346035,72068.0,72067.0,0.00202854]
[1730234161697,0.97974035,72068.0,72067.0,0.00202854]
[1730234161885,2.47974035,72068.0,72067.0,0.00202854]
[1730234162689,2.47974035,72068.0,72067.0,0.07142554]
[1730234162690,0.3608,72068.0,72067.0,0.07142554]
[1730234162885,0.49406435,72068.0,72067.0,0.07142554]
[1730234164093,0.3608,72068.0,72067.0,0.07142554]
[1730234164495,0.13326435,72068.0,72067.0,0.07142554]
[1730234164894,0.3608,72087.0,72082.0,0.069382]
[1730234165193,0.3608,72087.0,72086.0,0.069378]
[1730234165888,0.91022435,72087.0,72075.0,0.3608]
[1730234166084,0.91022435,72087.0,72061.0,0.00744054]
[1730234166085,0.13326435,72076.0,72066.0,0.1094]
[1730234166390,0.49406435,72087.0,72068.0,0.21916474]
[1730234166391,0.13326435,72079.0,72068.0,0.21916474]
[1730234166594,0.13326435,72079.0,72078.0,0.069386]
[1730234168498,0.069369,72096.0,72079.0,0.069384]
[1730234168705,0.069367,72098.0,72093.0,0.069372]
[1730234168998,0.13326435,72091.0,72090.0,0.069375]
[1730234169400,0.20263835,72091.0,72090.0,0.15495262]
[1730234169589,0.20263835,72091.0,72089.0,0.1015]
[1730234169900,0.069375,72090.0,72089.0,0.1015]
[1730234172002,0.069375,72090.0,72089.0,0.170876]
[1730234172202,0.13326435,72091.0,72089.0,0.11442191]
[1730234172407,0.3608,72095.0,72089.0,0.18379691]
[1730234172408,0.13326435,72090.0,72089.0,0.18379691]
[1730234172701,0.20263935,72090.0,72089.0,0.11442191]
[1730234173107,0.069375,72090.0,72089.0,0.11442191]
[1730234173401,0.20263935,72090.0,72089.0,0.11442191]
[1730234173598,0.13326435,72094.0,72092.0,0.069373]
[1730234173792,0.13326435,72094.0,72089.0,0.18379691]
[1730234173997,0.069374,72091.0,72090.0,0.069374]
[1730234174295,0.069374,72091.0,72089.0,0.11442191]
[1730234174502,0.20263635,72094.0,72091.0,0.069373]
[1730234174703,0.069372,72093.0,72091.0,0.069373]
[1730234175099,0.13326435,72094.0,72093.0,0.069372]
[1730234175698,0.13326435,72094.0,72089.0,0.11442191]
[1730234175897,0.20263535,72094.0,72089.0,0.11442191]
[1730234176901,0.13326435,72090.0,72089.0,0.11442191]
[1730234177103,0.20263935,72090.0,72089.0,0.11442191]
[1730234178405,0.13326435,72090.0,72089.0,0.18379791]
[1730234178602,0.20263935,72090.0,72089.0,0.18379791]
[1730234180109,0.00208191,72100.0,72099.0,0.069366]
[1730234180407,0.069354,72112.0,72100.0,0.069365]
[1730234180709,0.069353,72113.0,72112.0,0.069353]
[1730234180899,0.069355,72111.0,72108.0,0.069357]
[1730234181098,0.069355,72111.0,72109.0,0.170856]
[1730234181302,0.069355,72111.0,72109.0,0.3225622]
[1730234181502,0.069355,72111.0,72109.0,0.170856]
[1730234182205,0.13326435,72114.0,72109.0,0.170856]
[1730234182410,0.00152,72120.0,72114.0,0.069352]
[1730234182709,0.3608,72129.0,72128.0,0.069338]
[1730234183397,0.3608,72129.0,72120.0,0.274546]
[1730234183398,0.069339,72127.0,72120.0,0.2052]
[1730234183605,0.069339,72127.0,72119.0,0.00072]
[1730234183606,0.069346,72120.0,72119.0,0.00072]
[1730234183800,0.13326435,72121.0,72109.0,0.4623]
[1730234184001,0.069355,72110.0,72109.0,0.1015]
[1730234184200,0.10332209,72110.0,72109.0,0.1015]
[1730234184605,0.10332209,72110.0,72109.0,0.06573257]
[1730234185010,0.03396709,72110.0,72109.0,0.06573257]
[1730234185203,0.10332209,72110.0,72109.0,0.06573257]
[1730234186002,0.10332206,72110.0,72109.0,0.06573257]
[1730234186605,0.10332206,72110.0,72109.0,0.07852257]
[1730234186804,0.069339,72127.0,72120.0,0.069346]
[1730234187105,0.3608,72137.0,72136.0,0.06933]
[1730234187306,0.40336427,72137.0,72136.0,0.06933]
[1730234187513,0.430129,72137.0,72136.0,0.06933]
[1730234187913,0.3608,72137.0,72136.0,0.35014476]
[1730234188107,0.3608,72137.0,72136.0,0.28081476]
[1730234188308,0.3608,72137.0,72136.0,0.14755041]
[1730234188508,0.3608,72137.0,72134.0,0.1051]
[1730234188509,0.069331,72135.0,72134.0,0.1051]
[1730234192322,0.069331,72135.0,72134.0,0.174432]
[1730234194820,0.069331,72135.0,72134.0,0.1051]
[1730234195717,0.3608,72139.0,72136.0,0.06933]
[1730234195926,0.069329,72137.0,72136.0,0.20259435]
[1730234196114,0.3608,72139.0,72138.0,0.069328]
[1730234196515,0.3608,72139.0,72138.0,0.21837686]
[1730234196918,0.3608,72139.0,72138.0,0.33533686]
[1730234197319,0.3608,72145.0,72144.0,0.069323]
[1730234197534,0.3608,72145.0,72144.0,0.20258735]
[1730234197921,0.430122,72145.0,72144.0,0.13326435]
[1730234198319,0.430122,72145.0,72144.0,0.35638489]
[1730234198320,0.3608,72145.0,72144.0,0.35638489]
[1730234199524,0.3608,72145.0,72144.0,0.36909124]
[1730234200418,0.3608,72145.0,72144.0,0.29976824]
[1730234200622,0.3608,72145.0,72144.0,0.01270635]
[1730234200826,0.069327,72140.0,72138.0,0.3608]
[1730234201026,0.069327,72140.0,72138.0,0.430128]
[1730234201233,0.069327,72140.0,72139.0,0.15731545]
[1730234201624,0.3608,72145.0,72138.0,0.00072]
[1730234201625,0.069327,72139.0,72138.0,0.00072]
[1730234201929,0.59156435,72139.0,72123.0,0.069342]
[1730234202127,0.06934,72127.0,72123.0,0.069343]
[1730234202329,0.069342,72124.0,72122.0,0.15958529]
[1730234202518,0.069342,72124.0,72121.0,0.01501018]
[1730234202834,0.069342,72124.0,72122.0,0.15833378]
[1730234203224,1.5,72123.0,72122.0,0.15833378]
[1730234203526,0.069342,72125.0,72122.0,0.22767778]
[1730234204328,0.3608,72131.0,72122.0,0.15833378]
[1730234204528,0.069338,72128.0,72126.0,0.06934]
[1730234204727,0.069339,72127.0,72126.0,0.06934]
[1730234205632,0.3608,72131.0,72124.0,0.069341]
[1730234205633,0.069341,72125.0,72124.0,0.069341]
[1730234206433,0.069338,72128.0,72121.0,0.01501018]
[1730234206634,0.069339,72127.0,72123.0,0.069342]
[1730234206826,0.3608,72131.0,72123.0,0.069342]
[1730234206827,0.069341,72125.0,72123.0,0.069342]
[1730234207421,0.069341,72125.0,72122.0,0.14467774]
[1730234207620,0.069341,72125.0,72124.0,0.069342]
[1730234207829,0.069337,72129.0,72128.0,0.069337]
[1730234208335,0.3608,72131.0,72130.0,0.069336]
[1730234208539,0.430135,72131.0,72130.0,0.069336]
[1730234208833,0.3608,72131.0,72130.0,0.35499813]
[1730234209331,0.069333,72133.0,72131.0,0.069335]
[1730234209741,0.069333,72133.0,72132.0,0.21479964]
[1730234210230,0.069333,72133.0,72132.0,0.069334]
[1730234210427,0.069333,72133.0,72132.0,0.21479964]
[1730234211232,0.069333,72133.0,72132.0,0.14546564]
[1730234211626,0.069333,72133.0,72131.0,0.22797176]
[1730234211933,0.069333,72133.0,72131.0,0.069335]
[1730234212134,0.069333,72133.0,72132.0,0.15863676]
[1730234212332,0.069333,72133.0,72130.0,0.01275012]
[1730234212333,0.49406435,72133.0,72130.0,0.01275012]
[1730234212641,0.069339,72127.0,72126.0,0.069339]
[1730234214537,0.49406435,72133.0,72121.0,0.01522558]
[1730234214738,0.49406435,72133.0,72127.0,0.069338]
[1730234214937,0.069338,72128.0,72127.0,0.069338]
[1730234216941,0.069341,72126.0,72125.0,0.069341]
[1730234222048,0.069344,72122.0,72121.0,0.01522558]
[1730234222237,0.069362,72104.0,72102.0,0.1893]
[1730234222433,0.069358,72108.0,72107.0,0.069358]
[1730234222749,0.0020806,72121.0,72108.0,0.15387086]
[1730234222932,0.069353,72113.0,72112.0,0.13326435]
[1730234223133,0.10331906,72113.0,72112.0,0.13326435]
[1730234223336,0.069353,72113.0,72112.0,0.13326435]
[1730234224034,1.63534495,72121.0,72107.0,0.49406435]
[1730234224241,0.069348,72118.0,72112.0,0.13326435]
[1730234224549,0.069348,72118.0,72115.0,0.06935]
[1730234224840,0.49406435,72116.0,72107.0,0.3608]
[1730234225045,0.069357,72108.0,72107.0,0.3608]
[1730234225240,0.20262135,72108.0,72107.0,0.3608]
[1730234225740,0.069357,72108.0,72107.0,0.3608]
[1730234225943,0.10332603,72108.0,72107.0,0.3608]
[1730234226135,0.069361,72104.0,72102.0,0.08252278]
[1730234226331,0.3608,72109.0,72102.0,0.069362]
[1730234226538,0.13326435,72107.0,72098.0,0.13326435]
[1730234226732,0.069363,72102.0,72098.0,0.13326435]
[1730234226946,0.069365,72100.0,72099.0,0.15185233]
[1730234227147,0.03397259,72100.0,72099.0,0.22121833]
[1730234227353,0.3608,72103.0,72099.0,0.15185233]
[1730234227643,0.10333564,72102.0,72100.0,0.069364]
[1730234227947,0.03397264,72101.0,72100.0,0.069364]
[1730234228442,0.3608,72103.0,72100.0,0.069364]
[1730234228647,0.069364,72101.0,72100.0,0.069364]
[1730234229947,0.3608,72103.0,72101.0,0.069363]
[1730234230246,0.069363,72102.0,72101.0,0.069363]
[1730234231044,0.069365,72101.0,72098.0,0.21549115]
[1730234231349,0.069365,72101.0,72099.0,0.15199775]
[1730234231844,0.069365,72101.0,72099.0,0.22136375]
[1730234232042,0.069365,72101.0,72100.0,0.069365]
[1730234232649,0.3608,72103.0,72102.0,0.069363]
[1730234233353,0.069365,72100.0,72099.0,0.069366]
[1730234234852,0.3608,72103.0,72099.0,0.069366]